[Event "*** MasterClass Titled Tuesday Blitz"]
[Site "Chess.com"]
[Date "2017.11.07"]
[Round "10"]
[White "pastouche06"]
[Black "Grebeniuk-S"]
[Result "0-1"]
[WhiteElo "2351"]
[BlackElo "2439"]
[TimeControl "180+2"]
[EndTime "16:17:52 PST"]
[Termination "Grebeniuk-S won by resignation"]

1. e4 {[%clk 0:03:01.9]} 1... c5 {[%clk 0:03:00.3]} 2. Nf3 {[%clk 0:03:02.6]}
2... d6 {[%clk 0:03:01.3]} 3. d4 {[%clk 0:03:02.8]} 3... cxd4 {[%clk 0:03:03.2]}
4. Nxd4 {[%clk 0:03:04.3]} 4... Nf6 {[%clk 0:03:04.8]} 5. Nc3 {[%clk 0:03:05.1]}
5... g6 {[%clk 0:03:06.3]} 6. Be2 {[%clk 0:03:05.5]} 6... Bg7 {[%clk 0:03:06.7]}
7. O-O {[%clk 0:03:06.6]} 7... Nc6 {[%clk 0:03:06.4]} 8. Nb3 {[%clk 0:03:07.2]}
8... O-O {[%clk 0:03:07.2]} 9. Bg5 {[%clk 0:03:08.6]} 9... Be6 {[%clk
0:03:05.4]} 10. f4 {[%clk 0:03:09.1]} 10... Qb6+ {[%clk 0:02:47.7]} 11. Kh1
{[%clk 0:03:09.7]} 11... Rad8 {[%clk 0:02:35.5]} 12. Bf3 {[%clk 0:03:08.5]}
12... Bc4 {[%clk 0:02:29.6]} 13. Re1 {[%clk 0:02:51]} 13... h6 {[%clk
0:02:24.5]} 14. Bh4 {[%clk 0:02:47.2]} 14... e5 {[%clk 0:02:16.1]} 15. Nd5
{[%clk 0:02:40.3]} 15... Bxd5 {[%clk 0:02:06]} 16. exd5 {[%clk 0:02:40.9]} 16...
Nd4 {[%clk 0:02:01.1]} 17. fxe5 {[%clk 0:01:54.8]} 17... dxe5 {[%clk 0:01:56.5]}
18. c3 {[%clk 0:01:28]} 18... Nf5 {[%clk 0:01:41.1]} 19. Bxf6 {[%clk 0:01:13.7]}
19... Qxf6 {[%clk 0:01:43]} 20. Nc5 {[%clk 0:01:05]} 20... Qh4 {[%clk
0:01:38.7]} 21. Nxb7 {[%clk 0:00:43.2]} 21... Rb8 {[%clk 0:01:22.9]} 22. d6
{[%clk 0:00:44.2]} 22... e4 {[%clk 0:01:22.2]} 23. Bxe4 {[%clk 0:00:12.4]} 23...
Ng3+ {[%clk 0:01:22.9]} 24. Kg1 {[%clk 0:00:13.8]} 24... Nxe4 {[%clk 0:01:24.2]}
25. Qd5 {[%clk 0:00:15.4]} 25... Rfe8 {[%clk 0:01:10.1]} 26. d7 {[%clk 0:00:15]}
26... Qf2+ {[%clk 0:01:10.6]} 27. Kh1 {[%clk 0:00:16]} 27... Ng3+ {[%clk
0:01:11.9]} 28. hxg3 {[%clk 0:00:17.3]} 28... Rxe1+ {[%clk 0:01:13.7]} 29. Rxe1
{[%clk 0:00:18.3]} 29... Qxe1+ {[%clk 0:01:15.6]} 30. Kh2 {[%clk 0:00:19.8]}
30... Bf6 {[%clk 0:01:09.9]} 31. d8=Q+ {[%clk 0:00:06.6]} 31... Bxd8 {[%clk
0:01:10.7]} 32. Nxd8 {[%clk 0:00:08.2]} 32... Qf2 {[%clk 0:00:55.1]} 33. Nc6
{[%clk 0:00:07.7]} 33... Rxb2 {[%clk 0:00:54.2]} 34. Ne7+ {[%clk 0:00:04.3]}
34... Kg7 {[%clk 0:00:51.4]} 35. Qe5+ {[%clk 0:00:04.6]} 35... Qf6 {[%clk
0:00:48]} 36. Qd6 {[%clk 0:00:03.1]} 36... Qxd6 {[%clk 0:00:47.9]} 0-1

[Event "*** MasterClass Titled Tuesday Blitz"]
[Site "Chess.com"]
[Date "2017.11.07"]
[Round "10"]
[White "lukas_111111"]
[Black "VitaliyBernadskiy"]
[Result "0-1"]
[WhiteElo "2365"]
[BlackElo "2579"]
[TimeControl "180+2"]
[EndTime "16:18:03 PST"]
[Termination "VitaliyBernadskiy won by resignation"]

1. e4 {[%clk 0:03:01.9]} 1... c5 {[%clk 0:02:59.9]} 2. Nf3 {[%clk 0:03:02.5]}
2... d6 {[%clk 0:03:01.1]} 3. d4 {[%clk 0:03:03.3]} 3... cxd4 {[%clk 0:03:02.7]}
4. Nxd4 {[%clk 0:03:04.9]} 4... Nf6 {[%clk 0:03:04.3]} 5. Nc3 {[%clk 0:03:06.3]}
5... Nc6 {[%clk 0:03:03.8]} 6. Bg5 {[%clk 0:03:06.1]} 6... e6 {[%clk 0:03:03.6]}
7. Qd2 {[%clk 0:03:07.3]} 7... Be7 {[%clk 0:03:02.1]} 8. O-O-O {[%clk
0:03:08.1]} 8... a6 {[%clk 0:03:03.3]} 9. Nb3 {[%clk 0:03:02.8]} 9... O-O {[%clk
0:02:57.3]} 10. f3 {[%clk 0:02:42.6]} 10... b5 {[%clk 0:02:57.5]} 11. Bxf6
{[%clk 0:02:34.2]} 11... gxf6 {[%clk 0:02:50.2]} 12. Ne2 {[%clk 0:02:33.8]}
12... Qc7 {[%clk 0:02:46.5]} 13. Ng3 {[%clk 0:02:20.4]} 13... Kh8 {[%clk
0:02:46.2]} 14. Nh5 {[%clk 0:02:13.3]} 14... Rg8 {[%clk 0:02:47.2]} 15. h4
{[%clk 0:02:05.6]} 15... Ne5 {[%clk 0:02:44.4]} 16. Qd4 {[%clk 0:01:41.4]} 16...
Bd7 {[%clk 0:02:41.3]} 17. f4 {[%clk 0:01:28.6]} 17... Nc6 {[%clk 0:02:26.9]}
18. Qe3 {[%clk 0:01:20.5]} 18... Rac8 {[%clk 0:02:20.3]} 19. Kb1 {[%clk
0:01:19.4]} 19... Na5 {[%clk 0:02:15.8]} 20. c3 {[%clk 0:01:17.9]} 20... Nxb3
{[%clk 0:02:12.2]} 21. axb3 {[%clk 0:01:18.5]} 21... Qc5 {[%clk 0:02:13.2]} 22.
Qf3 {[%clk 0:00:47.6]} 22... b4 {[%clk 0:02:12.7]} 23. c4 {[%clk 0:00:48.1]}
23... a5 {[%clk 0:02:12.4]} 24. f5 {[%clk 0:00:46.3]} 24... Qe5 {[%clk
0:02:13.2]} 25. g4 {[%clk 0:00:38.6]} 25... a4 {[%clk 0:02:11]} 26. g5 {[%clk
0:00:35.4]} 26... a3 {[%clk 0:02:09.7]} 27. Rd2 {[%clk 0:00:31.9]} 27... exf5
{[%clk 0:01:43.3]} 28. Bd3 {[%clk 0:00:28.8]} 28... fxg5 {[%clk 0:01:42.1]} 29.
hxg5 {[%clk 0:00:26.7]} 29... Bxg5 {[%clk 0:01:42.7]} 30. Rdh2 {[%clk
0:00:20.8]} 30... Rg6 {[%clk 0:01:23.2]} 31. exf5 {[%clk 0:00:19]} 31... Rh6
{[%clk 0:01:22.9]} 32. f6 {[%clk 0:00:17.4]} 32... Bc6 {[%clk 0:01:20.6]} 33.
Qf5 {[%clk 0:00:08.4]} 33... a2+ {[%clk 0:01:19.7]} 34. Ka1 {[%clk 0:00:08.2]}
34... Qxf5 {[%clk 0:01:20.5]} 35. Bxf5 {[%clk 0:00:08.5]} 35... Bxh1 {[%clk
0:01:17]} 36. Bxc8 {[%clk 0:00:08.5]} 36... Bf3 {[%clk 0:01:17.7]} 37. c5 {[%clk
0:00:05.9]} 37... Rxh5 {[%clk 0:01:12.9]} 38. Rxh5 {[%clk 0:00:06.3]} 38... Bxh5
{[%clk 0:01:14.1]} 39. c6 {[%clk 0:00:05.9]} 39... d5 {[%clk 0:01:13.1]} 40. c7
{[%clk 0:00:04.5]} 40... Bf4 {[%clk 0:01:14]} 0-1

[Event "*** MasterClass Titled Tuesday Blitz"]
[Site "Chess.com"]
[Date "2017.11.07"]
[Round "10"]
[White "FairChess_on_YouTube"]
[Black "Genghis_K"]
[Result "0-1"]
[WhiteElo "2753"]
[BlackElo "2697"]
[TimeControl "180+2"]
[EndTime "16:18:06 PST"]
[Termination "Genghis_K won by resignation"]

1. d4 {[%clk 0:03:01.9]} 1... d5 {[%clk 0:03:01.2]} 2. c4 {[%clk 0:02:59.3]}
2... e6 {[%clk 0:03:02.4]} 3. Nc3 {[%clk 0:02:58.5]} 3... Bb4 {[%clk 0:03:03.9]}
4. cxd5 {[%clk 0:02:57.4]} 4... exd5 {[%clk 0:03:04.5]} 5. Bf4 {[%clk 0:02:59]}
5... c6 {[%clk 0:03:04.4]} 6. e3 {[%clk 0:02:59.5]} 6... Ne7 {[%clk 0:02:57.7]}
7. Rc1 {[%clk 0:02:58.4]} 7... O-O {[%clk 0:02:57.9]} 8. Qb3 {[%clk 0:02:55.6]}
8... Bd6 {[%clk 0:02:56]} 9. Bg3 {[%clk 0:02:54.7]} 9... Nf5 {[%clk 0:02:52.8]}
10. Bd3 {[%clk 0:02:53.4]} 10... Nxg3 {[%clk 0:02:44.5]} 11. hxg3 {[%clk
0:02:55.3]} 11... h6 {[%clk 0:02:46]} 12. Nge2 {[%clk 0:02:53.2]} 12... Nd7
{[%clk 0:02:47.2]} 13. Nf4 {[%clk 0:02:47.8]} 13... Nf6 {[%clk 0:02:48.1]} 14.
f3 {[%clk 0:02:47.5]} 14... Re8 {[%clk 0:02:46.7]} 15. Kf2 {[%clk 0:02:48.6]}
15... b6 {[%clk 0:02:22.7]} 16. Bb1 {[%clk 0:02:41.5]} 16... Bb7 {[%clk
0:02:14.6]} 17. Nce2 {[%clk 0:02:38.3]} 17... Rc8 {[%clk 0:02:15.1]} 18. g4
{[%clk 0:02:39]} 18... c5 {[%clk 0:02:06.9]} 19. Qd3 {[%clk 0:02:39.5]} 19...
Kf8 {[%clk 0:02:03.3]} 20. Qf5 {[%clk 0:02:19.1]} 20... Qe7 {[%clk 0:01:56.1]}
21. Qd3 {[%clk 0:02:12.2]} 21... Ba6 {[%clk 0:01:57.3]} 22. Qb3 {[%clk 0:02:02]}
22... c4 {[%clk 0:01:31.3]} 23. Qc3 {[%clk 0:01:57.6]} 23... Bb4 {[%clk
0:01:32.7]} 24. g5 {[%clk 0:01:52.3]} 24... Bxc3 {[%clk 0:01:26.2]} 25. Rxc3
{[%clk 0:01:54.2]} 25... Ng8 {[%clk 0:01:27.5]} 26. g6 {[%clk 0:01:54]} 26...
Rc6 {[%clk 0:01:22.8]} 27. Nxd5 {[%clk 0:01:52.2]} 27... Qd6 {[%clk 0:01:21.9]}
28. Nef4 {[%clk 0:01:51.4]} 28... b5 {[%clk 0:01:09.3]} 29. Ra3 {[%clk
0:01:41.6]} 29... b4 {[%clk 0:01:04.7]} 30. Ra5 {[%clk 0:01:42]} 30... c3 {[%clk
0:01:05.3]} 31. bxc3 {[%clk 0:01:33.1]} 31... bxc3 {[%clk 0:01:06.4]} 32. gxf7
{[%clk 0:01:32.2]} 32... Kxf7 {[%clk 0:01:07.5]} 33. Bg6+ {[%clk 0:01:32.4]}
33... Kf8 {[%clk 0:01:05.2]} 34. Bxe8 {[%clk 0:01:28.9]} 34... Kxe8 {[%clk
0:01:06.5]} 35. Rc1 {[%clk 0:01:26.5]} 35... c2 {[%clk 0:01:02.2]} 36. a3 {[%clk
0:01:27]} 36... Qd8 {[%clk 0:00:55.1]} 37. Ra4 {[%clk 0:01:27]} 37... g5 {[%clk
0:00:55.8]} 38. Nb4 {[%clk 0:01:26.9]} 38... gxf4 {[%clk 0:00:40.3]} 39. Nxc6
{[%clk 0:01:25.3]} 39... fxe3+ {[%clk 0:00:39.3]} 40. Kg1 {[%clk 0:01:22.6]}
40... Qb6 {[%clk 0:00:40.7]} 41. d5 {[%clk 0:01:20.8]} 41... Qb2 {[%clk
0:00:32.2]} 42. Re4+ {[%clk 0:01:13.5]} 42... Kf7 {[%clk 0:00:25.2]} 43. Ne5+
{[%clk 0:01:12.7]} 43... Kg7 {[%clk 0:00:25.5]} 44. Rg4+ {[%clk 0:01:10.4]}
44... Kh7 {[%clk 0:00:26.8]} 45. Nd7 {[%clk 0:01:01.4]} 45... Qxc1+ {[%clk
0:00:25.9]} 46. Kh2 {[%clk 0:01:03]} 46... Qxa3 {[%clk 0:00:26.5]} 0-1

[Event "*** MasterClass Titled Tuesday Blitz"]
[Site "Chess.com"]
[Date "2017.11.07"]
[Round "10"]
[White "Jadeit90"]
[Black "Rodalquilar"]
[Result "0-1"]
[WhiteElo "2303"]
[BlackElo "2505"]
[TimeControl "180+2"]
[EndTime "16:18:11 PST"]
[Termination "Rodalquilar won by resignation"]

1. g3 {[%clk 0:03:01.9]} 1... d5 {[%clk 0:02:57.9]} 2. Bg2 {[%clk 0:03:00]} 2...
Nf6 {[%clk 0:02:59.2]} 3. c4 {[%clk 0:02:58.2]} 3... e6 {[%clk 0:02:59.9]} 4.
cxd5 {[%clk 0:02:59.3]} 4... exd5 {[%clk 0:03:00.9]} 5. Nf3 {[%clk 0:03:01.2]}
5... Be7 {[%clk 0:02:59.5]} 6. O-O {[%clk 0:03:03.1]} 6... O-O {[%clk
0:03:00.6]} 7. d3 {[%clk 0:03:04.4]} 7... c6 {[%clk 0:02:58.6]} 8. Nc3 {[%clk
0:03:05.7]} 8... Bf5 {[%clk 0:02:58.8]} 9. e4 {[%clk 0:03:02.3]} 9... dxe4
{[%clk 0:02:58]} 10. Nh4 {[%clk 0:03:03.6]} 10... Bg4 {[%clk 0:02:58.8]} 11. Qb3
{[%clk 0:03:03.5]} 11... Qxd3 {[%clk 0:01:54.5]} 12. Qxb7 {[%clk 0:03:02.1]}
12... Nbd7 {[%clk 0:01:55.9]} 13. Qxc6 {[%clk 0:02:44.3]} 13... Rac8 {[%clk
0:01:34.5]} 14. Qa4 {[%clk 0:02:33.8]} 14... Rc4 {[%clk 0:01:24.9]} 15. Qxa7
{[%clk 0:02:33.2]} 15... Bc5 {[%clk 0:01:26.2]} 16. Qb7 {[%clk 0:02:27.1]} 16...
Rb4 {[%clk 0:01:14.1]} 17. Qc6 {[%clk 0:02:20.5]} 17... Rc4 {[%clk 0:01:06]} 18.
Qb5 {[%clk 0:02:09.2]} 18... Rb8 {[%clk 0:01:04.3]} 19. Qa6 {[%clk 0:02:06.2]}
19... Ne5 {[%clk 0:00:58.8]} 20. Bf4 {[%clk 0:01:43.4]} 20... Bc8 {[%clk
0:00:52.1]} 21. Qxc4 {[%clk 0:01:31.2]} 21... Qxc4 {[%clk 0:00:49.2]} 22. Bxe5
{[%clk 0:01:32.5]} 22... Rxb2 {[%clk 0:00:50.4]} 23. Nxe4 {[%clk 0:01:16.1]}
23... Nxe4 {[%clk 0:00:47.2]} 24. Bxb2 {[%clk 0:01:15.9]} 24... Nxf2 {[%clk
0:00:48.6]} 25. Bc1 {[%clk 0:00:18.8]} 25... Nh3+ {[%clk 0:00:40.8]} 26. Kh1
{[%clk 0:00:19]} 26... Bb7 {[%clk 0:00:42.7]} 27. Bf4 {[%clk 0:00:15.7]} 27...
Bxg2+ {[%clk 0:00:29.1]} 28. Kxg2 {[%clk 0:00:17.6]} 28... Nxf4+ {[%clk
0:00:30.4]} 29. gxf4 {[%clk 0:00:18.2]} 29... g5 {[%clk 0:00:25.9]} 30. Nf5
{[%clk 0:00:14.5]} 30... Qe4+ {[%clk 0:00:26.5]} 31. Kg3 {[%clk 0:00:05.1]}
31... Qxf5 {[%clk 0:00:26.7]} 32. fxg5 {[%clk 0:00:07]} 32... Qxg5+ {[%clk
0:00:28]} 33. Kf3 {[%clk 0:00:08.5]} 33... Qd5+ {[%clk 0:00:28.6]} 34. Kg4
{[%clk 0:00:09.6]} 34... h5+ {[%clk 0:00:29.3]} 35. Kh4 {[%clk 0:00:10.4]} 35...
Be7+ {[%clk 0:00:30.4]} 36. Kh3 {[%clk 0:00:12.3]} 36... Qd3+ {[%clk 0:00:30.1]}
37. Kg2 {[%clk 0:00:13.8]} 37... Qe4+ {[%clk 0:00:31.5]} 38. Kg1 {[%clk
0:00:14.6]} 38... Bc5+ {[%clk 0:00:32.4]} 0-1

[Event "*** MasterClass Titled Tuesday Blitz"]
[Site "Chess.com"]
[Date "2017.11.07"]
[Round "10"]
[White "Bryakin_Mikhail"]
[Black "Ilja_Semjonovs"]
[Result "0-1"]
[WhiteElo "2499"]
[BlackElo "2393"]
[TimeControl "180+2"]
[EndTime "16:18:13 PST"]
[Termination "Ilja_Semjonovs won by checkmate"]

1. d4 {[%clk 0:03:00.7]} 1... d5 {[%clk 0:03:00.7]} 2. Nf3 {[%clk 0:03:00.9]}
2... Nf6 {[%clk 0:02:57.4]} 3. Nc3 {[%clk 0:03:01.4]} 3... g6 {[%clk 0:02:37.9]}
4. Bf4 {[%clk 0:03:02.1]} 4... Bg7 {[%clk 0:02:37.8]} 5. h4 {[%clk 0:03:01.3]}
5... O-O {[%clk 0:02:27.9]} 6. Ne5 {[%clk 0:03:02.2]} 6... c5 {[%clk 0:02:23.6]}
7. e3 {[%clk 0:03:03.1]} 7... Nh5 {[%clk 0:02:20.2]} 8. Bh2 {[%clk 0:03:01.3]}
8... cxd4 {[%clk 0:02:16.8]} 9. exd4 {[%clk 0:03:02.2]} 9... Nc6 {[%clk
0:02:17.7]} 10. Be2 {[%clk 0:02:57.4]} 10... Nxe5 {[%clk 0:02:11.9]} 11. Bxe5
{[%clk 0:02:54.2]} 11... Bxe5 {[%clk 0:02:10.7]} 12. dxe5 {[%clk 0:02:54.4]}
12... d4 {[%clk 0:02:03.3]} 13. Nb5 {[%clk 0:02:21.2]} 13... Nf4 {[%clk
0:01:58.7]} 14. Qxd4 {[%clk 0:02:12]} 14... Nxg2+ {[%clk 0:01:09.5]} 15. Kf1
{[%clk 0:02:11.8]} 15... Qxd4 {[%clk 0:01:06.9]} 16. Nxd4 {[%clk 0:02:13.7]}
16... Nf4 {[%clk 0:01:08.6]} 17. Bf3 {[%clk 0:02:11.2]} 17... Bh3+ {[%clk
0:01:04.6]} 18. Kg1 {[%clk 0:01:47]} 18... Rad8 {[%clk 0:00:58.1]} 19. c3 {[%clk
0:01:48]} 19... Bc8 {[%clk 0:00:45.4]} 20. Rd1 {[%clk 0:01:42.1]} 20... f6
{[%clk 0:00:34.8]} 21. exf6 {[%clk 0:01:38]} 21... Rxf6 {[%clk 0:00:33.9]} 22.
Kh2 {[%clk 0:01:33.7]} 22... e5 {[%clk 0:00:32.5]} 23. Nb3 {[%clk 0:01:26.4]}
23... Rxd1 {[%clk 0:00:30.5]} 24. Rxd1 {[%clk 0:01:26.7]} 24... b6 {[%clk
0:00:28.8]} 25. Kg3 {[%clk 0:01:22.7]} 25... Kg7 {[%clk 0:00:26.5]} 26. Rd8
{[%clk 0:01:23.1]} 26... Be6 {[%clk 0:00:23.7]} 27. Nd2 {[%clk 0:01:19.3]} 27...
Bxa2 {[%clk 0:00:20.7]} 28. b3 {[%clk 0:01:20.5]} 28... Rf7 {[%clk 0:00:18.9]}
29. Bg4 {[%clk 0:01:05.6]} 29... Rc7 {[%clk 0:00:19]} 30. c4 {[%clk 0:01:05.5]}
30... h5 {[%clk 0:00:18.6]} 31. Bf3 {[%clk 0:01:04.5]} 31... Kf7 {[%clk
0:00:17]} 32. Be4 {[%clk 0:00:57.4]} 32... b5 {[%clk 0:00:16.4]} 33. cxb5 {[%clk
0:00:56]} 33... Bxb3 {[%clk 0:00:13]} 34. Nxb3 {[%clk 0:00:54.4]} 34... Rc3+
{[%clk 0:00:14.5]} 35. f3 {[%clk 0:00:56]} 35... Rxb3 {[%clk 0:00:16.4]} 36. Bc6
{[%clk 0:00:52.2]} 36... Rb2 {[%clk 0:00:15.3]} 37. Bd5+ {[%clk 0:00:32.6]}
37... Ke7 {[%clk 0:00:13.8]} 38. Ra8 {[%clk 0:00:29.4]} 38... Rg2# {[%clk
0:00:11.6]} 0-1

[Event "*** MasterClass Titled Tuesday Blitz"]
[Site "Chess.com"]
[Date "2017.11.07"]
[Round "10"]
[White "michaelq2d5"]
[Black "hansen"]
[Result "0-1"]
[WhiteElo "2632"]
[BlackElo "2589"]
[TimeControl "180+2"]
[EndTime "16:18:34 PST"]
[Termination "hansen won on time"]

1. d4 {[%clk 0:03:01.7]} 1... Nf6 {[%clk 0:02:54.9]} 2. c4 {[%clk 0:03:02.9]}
2... e6 {[%clk 0:02:56]} 3. g3 {[%clk 0:03:03.7]} 3... d5 {[%clk 0:02:55.2]} 4.
Bg2 {[%clk 0:03:04.8]} 4... Bb4+ {[%clk 0:02:56.7]} 5. Nd2 {[%clk 0:03:05.3]}
5... O-O {[%clk 0:02:55.5]} 6. Nf3 {[%clk 0:03:06.5]} 6... c6 {[%clk 0:02:51.5]}
7. O-O {[%clk 0:03:06.8]} 7... b6 {[%clk 0:02:50.5]} 8. b3 {[%clk 0:03:07.6]}
8... Bb7 {[%clk 0:02:49.9]} 9. Bb2 {[%clk 0:03:08.6]} 9... Nbd7 {[%clk
0:02:51.2]} 10. Qc2 {[%clk 0:03:07.5]} 10... Rc8 {[%clk 0:02:51.2]} 11. a3
{[%clk 0:02:51.1]} 11... Be7 {[%clk 0:02:48.3]} 12. e4 {[%clk 0:02:52.3]} 12...
c5 {[%clk 0:02:45.9]} 13. exd5 {[%clk 0:02:49.9]} 13... exd5 {[%clk 0:02:46.7]}
14. Nh4 {[%clk 0:02:48]} 14... Re8 {[%clk 0:02:40.4]} 15. Nf5 {[%clk 0:02:23]}
15... Bf8 {[%clk 0:02:39.4]} 16. Ne3 {[%clk 0:02:23.3]} 16... cxd4 {[%clk
0:02:19.8]} 17. Bxd4 {[%clk 0:02:23.7]} 17... Rc7 {[%clk 0:02:21.4]} 18. Qb2
{[%clk 0:02:21.2]} 18... dxc4 {[%clk 0:02:16]} 19. Bxb7 {[%clk 0:02:21.6]} 19...
c3 {[%clk 0:01:52.5]} 20. Bxc3 {[%clk 0:02:22.1]} 20... Rxb7 {[%clk 0:01:54.2]}
21. Rad1 {[%clk 0:02:21.2]} 21... Qa8 {[%clk 0:01:54.3]} 22. Ndc4 {[%clk
0:02:17.4]} 22... Rc7 {[%clk 0:01:54]} 23. Rfe1 {[%clk 0:01:49.3]} 23... b5
{[%clk 0:01:29.9]} 24. Bxf6 {[%clk 0:00:52]} 24... Nxf6 {[%clk 0:01:26]} 25. Nd2
{[%clk 0:00:42.1]} 25... Bc5 {[%clk 0:01:14.9]} 26. Ndf1 {[%clk 0:00:38.8]}
26... h5 {[%clk 0:01:12.1]} 27. h4 {[%clk 0:00:39.8]} 27... Rce7 {[%clk
0:00:54.7]} 28. b4 {[%clk 0:00:19.9]} 28... Bb6 {[%clk 0:00:54]} 29. Re2 {[%clk
0:00:04.5]} 29... Ng4 {[%clk 0:00:41.1]} 30. Rde1 {[%clk 0:00:05.8]} 30... Ne5
{[%clk 0:00:24.9]} 31. Nh2 {[%clk 0:00:06]} 31... Nd3 {[%clk 0:00:25.9]} 32. Qc3
{[%clk 0:00:07.1]} 32... Nxe1 {[%clk 0:00:26.9]} 33. Rxe1 {[%clk 0:00:08.8]}
33... Bxe3 {[%clk 0:00:26.8]} 34. fxe3 {[%clk 0:00:10]} 34... Qe4 {[%clk
0:00:26.9]} 35. Qc5 {[%clk 0:00:09.4]} 35... Qc4 {[%clk 0:00:25.2]} 36. Qxh5
{[%clk 0:00:05.7]} 36... Rxe3 {[%clk 0:00:25.5]} 37. Rxe3 {[%clk 0:00:06.5]}
37... Rxe3 {[%clk 0:00:27.4]} 38. Nf1 {[%clk 0:00:07.6]} 38... Rxa3 {[%clk
0:00:27.3]} 39. Qf5 {[%clk 0:00:06]} 39... Ra2 {[%clk 0:00:20]} 40. Ne3 {[%clk
0:00:04.2]} 40... Qc1+ {[%clk 0:00:20.8]} 41. Nf1 {[%clk 0:00:05.5]} 41... Qc2
{[%clk 0:00:21.6]} 0-1

[Event "*** MasterClass Titled Tuesday Blitz"]
[Site "Chess.com"]
[Date "2017.11.07"]
[Round "10"]
[White "Maitreia"]
[Black "ChainsOfFantasia"]
[Result "0-1"]
[WhiteElo "2477"]
[BlackElo "2512"]
[TimeControl "180+2"]
[EndTime "16:18:48 PST"]
[Termination "ChainsOfFantasia won on time"]

1. c4 {[%clk 0:03:01.9]} 1... e6 {[%clk 0:02:58.9]} 2. g3 {[%clk 0:03:02.9]}
2... d5 {[%clk 0:03:00.8]} 3. Bg2 {[%clk 0:03:04.8]} 3... Nf6 {[%clk 0:02:52.1]}
4. Nf3 {[%clk 0:03:05.6]} 4... Be7 {[%clk 0:02:53.3]} 5. O-O {[%clk 0:03:07.1]}
5... O-O {[%clk 0:02:54.5]} 6. b3 {[%clk 0:03:08.6]} 6... c5 {[%clk 0:02:55.4]}
7. Bb2 {[%clk 0:03:09.2]} 7... Nc6 {[%clk 0:02:56.5]} 8. e3 {[%clk 0:03:10.2]}
8... d4 {[%clk 0:02:57.9]} 9. exd4 {[%clk 0:03:11.1]} 9... cxd4 {[%clk
0:02:59.8]} 10. Re1 {[%clk 0:03:12.6]} 10... Ne8 {[%clk 0:02:59.9]} 11. d3
{[%clk 0:03:09.2]} 11... f6 {[%clk 0:02:58.2]} 12. a3 {[%clk 0:03:09.5]} 12...
a5 {[%clk 0:02:58.3]} 13. Nbd2 {[%clk 0:03:10.5]} 13... e5 {[%clk 0:02:59.3]}
14. Qc2 {[%clk 0:03:09.4]} 14... Nc7 {[%clk 0:03:00.4]} 15. h4 {[%clk 0:03:07]}
15... Kh8 {[%clk 0:03:00]} 16. h5 {[%clk 0:03:07.7]} 16... Rb8 {[%clk 0:02:58]}
17. c5 {[%clk 0:03:00.9]} 17... Na6 {[%clk 0:02:52.1]} 18. h6 {[%clk 0:02:34.4]}
18... g5 {[%clk 0:02:51.8]} 19. Ne4 {[%clk 0:02:27.8]} 19... Bf5 {[%clk
0:02:45.2]} 20. b4 {[%clk 0:02:11.4]} 20... axb4 {[%clk 0:02:44.8]} 21. axb4
{[%clk 0:02:13.3]} 21... Ncxb4 {[%clk 0:02:41.1]} 22. Qc4 {[%clk 0:02:08.7]}
22... Nxd3 {[%clk 0:02:27.8]} 23. Qxd3 {[%clk 0:02:02]} 23... Nxc5 {[%clk
0:02:28.8]} 24. Nxc5 {[%clk 0:01:59.5]} 24... Bxd3 {[%clk 0:02:29.1]} 25. Nxd3
{[%clk 0:02:01.4]} 25... Bd6 {[%clk 0:02:12.5]} 26. Nd2 {[%clk 0:01:55]} 26...
Re8 {[%clk 0:02:11.5]} 27. Rad1 {[%clk 0:01:51.1]} 27... Rc8 {[%clk 0:01:59.8]}
28. Ne4 {[%clk 0:01:47.6]} 28... Rc2 {[%clk 0:01:54.8]} 29. Ba1 {[%clk
0:01:46.8]} 29... f5 {[%clk 0:01:43.1]} 30. Nxd6 {[%clk 0:01:36.6]} 30... Qxd6
{[%clk 0:01:45]} 31. Nxe5 {[%clk 0:01:38.2]} 31... Kg8 {[%clk 0:01:20.1]} 32.
Rxd4 {[%clk 0:01:17.9]} 32... Rxe5 {[%clk 0:00:28.6]} 33. Rxe5 {[%clk
0:01:18.5]} 33... Rc1+ {[%clk 0:00:22.4]} 34. Kh2 {[%clk 0:01:18.9]} 34... Qxh6+
{[%clk 0:00:23]} 35. Bh3 {[%clk 0:01:19.2]} 35... Rxa1 {[%clk 0:00:22.1]} 36.
Rd7 {[%clk 0:00:57.2]} 36... Ra8 {[%clk 0:00:14.1]} 37. Kg2 {[%clk 0:00:21.2]}
37... g4 {[%clk 0:00:14.5]} 38. Bxg4 {[%clk 0:00:22.8]} 38... fxg4 {[%clk
0:00:16.1]} 39. Rd4 {[%clk 0:00:20.3]} 39... Qh3+ {[%clk 0:00:16]} 40. Kg1
{[%clk 0:00:20.1]} 40... Ra1+ {[%clk 0:00:17.9]} 0-1